Workbook

Sheet Pulpit nawigacyjny
N1: =" INTERAKCYJNY BUDŻET "&NazwaBudżetu -> INTERAKCYJNY BUDŻET RODZINA ROLECKICH 2012
A3: ='Dane wykresu'!C38 -> 4,000 zł
D5: przychód
A7: ='Dane wykresu'!C39 -> 5,933 zł
D9: wydatki
A11: ='Dane wykresu'!D40&'Dane wykresu'!C40&" zł" -> -1933 zł
D13: przepływ gotówkowy

Sheet Budżet
C1: sty | D1: lut | E1: mar | F1: kwi | G1: maj | H1: cze | I1: lip | J1: się | K1: wrz | L1: paź | M1: lis | N1: gru | O1: rok | P1: średnio
B5: Saldo początkowe | C5: 1000
B6: Łączny przychód | C6: =SUM(tblDochód[jan]) -> 4222 | D6: =SUM(tblDochód[feb]) -> 9033 | E6: =SUM(tblDochód[mar]) -> 4000 | F6: =SUM(tblDochód[apr]) -> 4045 | G6: =SUM(tblDochód[may]) -> 9000 | H6: =SUM(tblDochód[jun]) -> 1525 | I6: =SUM(tblDochód[jul]) -> 1500 | J6: =SUM(tblDochód[aug]) -> 6500 | K6: =SUM(tblDochód[sep]) -> 4000 | L6: =SUM(tblDochód[oct]) -> 4000 | M6: =SUM(tblDochód[nov]) -> 9000 | N6: =SUM(tblDochód[dec]) -> 4000 | O6: =SUM(tblDochód[year]) -> 60825 | P6: =O6/12 -> 5069
B7: Łączne wydatki | C7: =SUM(KategoriaWydatków_01[jan],KategoriaWydatków_02[jan],KategoriaWydatków_03[jan],KategoriaWydatków_04[jan],KategoriaWydatków_05[jan],KategoriaWydatków_06[jan],KategoriaWydatków_07[jan],KategoriaWydatków_08[jan],KategoriaWydatków_09[jan],KategoriaWydatków_10[jan],KategoriaWydatków_11[jan],KategoriaWydatków_12[jan],KategoriaWydatków_13[jan],KategoriaWydatków_14[jan],KategoriaWydatków_15[jan]) -> 7936 | D7: =SUM(KategoriaWydatków_01[feb],KategoriaWydatków_02[feb],KategoriaWydatków_03[feb],KategoriaWydatków_04[feb],KategoriaWydatków_05[feb],KategoriaWydatków_06[feb],KategoriaWydatków_07[feb],KategoriaWydatków_08[feb],KategoriaWydatków_09[feb],KategoriaWydatków_10[feb],KategoriaWydatków_11[feb],KategoriaWydatków_12[feb],KategoriaWydatków_13[feb],KategoriaWydatków_14[feb],KategoriaWydatków_15[feb]) -> 5243 | E7: =SUM(KategoriaWydatków_01[mar],KategoriaWydatków_02[mar],KategoriaWydatków_03[mar],KategoriaWydatków_04[mar],KategoriaWydatków_05[mar],KategoriaWydatków_06[mar],KategoriaWydatków_07[mar],KategoriaWydatków_08[mar],KategoriaWydatków_09[mar],KategoriaWydatków_10[mar],KategoriaWydatków_11[mar],KategoriaWydatków_12[mar],KategoriaWydatków_13[mar],KategoriaWydatków_14[mar],KategoriaWydatków_15[mar]) -> 5933 | F7: =SUM(KategoriaWydatków_01[apr],KategoriaWydatków_02[apr],KategoriaWydatków_03[apr],KategoriaWydatków_04[apr],KategoriaWydatków_05[apr],KategoriaWydatków_06[apr],KategoriaWydatków_07[apr],KategoriaWydatków_08[apr],KategoriaWydatków_09[apr],KategoriaWydatków_10[apr],KategoriaWydatków_11[apr],KategoriaWydatków_12[apr],KategoriaWydatków_13[apr],KategoriaWydatków_14[apr],KategoriaWydatków_15[apr]) -> 5858 | G7: =SUM(KategoriaWydatków_01[may],KategoriaWydatków_02[may],KategoriaWydatków_03[may],KategoriaWydatków_04[may],KategoriaWydatków_05[may],KategoriaWydatków_06[may],KategoriaWydatków_07[may],KategoriaWydatków_08[may],KategoriaWydatków_09[may],KategoriaWydatków_10[may],KategoriaWydatków_11[may],KategoriaWydatków_12[may],KategoriaWydatków_13[may],KategoriaWydatków_14[may],KategoriaWydatków_15[may]) -> 5468 | H7: =SUM(KategoriaWydatków_01[jun],KategoriaWydatków_02[jun],KategoriaWydatków_03[jun],KategoriaWydatków_04[jun],KategoriaWydatków_05[jun],KategoriaWydatków_06[jun],KategoriaWydatków_07[jun],KategoriaWydatków_08[jun],KategoriaWydatków_09[jun],KategoriaWydatków_10[jun],KategoriaWydatków_11[jun],KategoriaWydatków_12[jun],KategoriaWydatków_13[jun],KategoriaWydatków_14[jun],KategoriaWydatków_15[jun]) -> 5118 | I7: =SUM(KategoriaWydatków_01[jul],KategoriaWydatków_02[jul],KategoriaWydatków_03[jul],KategoriaWydatków_04[jul],KategoriaWydatków_05[jul],KategoriaWydatków_06[jul],KategoriaWydatków_07[jul],KategoriaWydatków_08[jul],KategoriaWydatków_09[jul],KategoriaWydatków_10[jul],KategoriaWydatków_11[jul],KategoriaWydatków_12[jul],KategoriaWydatków_13[jul],KategoriaWydatków_14[jul],KategoriaWydatków_15[jul]) -> 5743 | J7: =SUM(KategoriaWydatków_01[aug],KategoriaWydatków_02[aug],KategoriaWydatków_03[aug],KategoriaWydatków_04[aug],KategoriaWydatków_05[aug],KategoriaWydatków_06[aug],KategoriaWydatków_07[aug],KategoriaWydatków_08[aug],KategoriaWydatków_09[aug],KategoriaWydatków_10[aug],KategoriaWydatków_11[aug],KategoriaWydatków_12[aug],KategoriaWydatków_13[aug],KategoriaWydatków_14[aug],KategoriaWydatków_15[aug]) -> 5353 | K7: =SUM(KategoriaWydatków_01[sep],KategoriaWydatków_02[sep],KategoriaWydatków_03[sep],KategoriaWydatków_04[sep],KategoriaWydatków_05[sep],KategoriaWydatków_06[sep],KategoriaWydatków_07[sep],KategoriaWydatków_08[sep],KategoriaWydatków_09[sep],KategoriaWydatków_10[sep],KategoriaWydatków_11[sep],KategoriaWydatków_12[sep],KategoriaWydatków_13[sep],KategoriaWydatków_14[sep],KategoriaWydatków_15[sep]) -> 5983 | L7: =SUM(KategoriaWydatków_01[oct],KategoriaWydatków_02[oct],KategoriaWydatków_03[oct],KategoriaWydatków_04[oct],KategoriaWydatków_05[oct],KategoriaWydatków_06[oct],KategoriaWydatków_07[oct],KategoriaWydatków_08[oct],KategoriaWydatków_09[oct],KategoriaWydatków_10[oct],KategoriaWydatków_11[oct],KategoriaWydatków_12[oct],KategoriaWydatków_13[oct],KategoriaWydatków_14[oct],KategoriaWydatków_15[oct]) -> 5943 | M7: =SUM(KategoriaWydatków_01[nov],KategoriaWydatków_02[nov],KategoriaWydatków_03[nov],KategoriaWydatków_04[nov],KategoriaWydatków_05[nov],KategoriaWydatków_06[nov],KategoriaWydatków_07[nov],KategoriaWydatków_08[nov],KategoriaWydatków_09[nov],KategoriaWydatków_10[nov],KategoriaWydatków_11[nov],KategoriaWydatków_12[nov],KategoriaWydatków_13[nov],KategoriaWydatków_14[nov],KategoriaWydatków_15[nov]) -> 5058 | N7: =SUM(KategoriaWydatków_01[dec],KategoriaWydatków_02[dec],KategoriaWydatków_03[dec],KategoriaWydatków_04[dec],KategoriaWydatków_05[dec],KategoriaWydatków_06[dec],KategoriaWydatków_07[dec],KategoriaWydatków_08[dec],KategoriaWydatków_09[dec],KategoriaWydatków_10[dec],KategoriaWydatków_11[dec],KategoriaWydatków_12[dec],KategoriaWydatków_13[dec],KategoriaWydatków_14[dec],KategoriaWydatków_15[dec]) -> 4958 | O7: =SUM(KategoriaWydatków_01[year],KategoriaWydatków_02[year],KategoriaWydatków_03[year],KategoriaWydatków_04[year],KategoriaWydatków_05[year],KategoriaWydatków_06[year],KategoriaWydatków_07[year],KategoriaWydatków_08[year],KategoriaWydatków_09[year],KategoriaWydatków_10[year],KategoriaWydatków_11[year],KategoriaWydatków_12[year],KategoriaWydatków_13[year],KategoriaWydatków_14[year],KategoriaWydatków_15[year]) -> 68594 | P7: =O7/12 -> 5716
B8: Przychód netto | C8: =C6-C7 -> -3714 | D8: =D6-D7 -> 3790 | E8: -1933 | F8: -1813 | G8: 3532 | H8: -3593 | I8: -4243 | J8: 1147 | K8: -1983 | L8: -1943 | M8: 3942 | N8: -958 | O8: -7769 | P8: =O8/12 -> -647
B9: ŁĄCZNY PRZEPŁYW GOTÓWKOWY | C9: =C5+C6-C7 -> -2714 | D9: =C9+D6-D7 -> 1076 | E9: =D9+E6-E7 -> -857 | F9: -2670 | G9: 862 | H9: -2731 | I9: -6974 | J9: -5827 | K9: -7810 | L9: -9753 | M9: -5811 | N9: -6769
B12: przychód
B13: Wynagrodzenia i napiwki | C13: 4000 | D13: 4000 | E13: 4000 | F13: 4000 | G13: 4000 | H13: 1000 | I13: 1000 | J13: 1000 | K13: 4000 | L13: 4000 | M13: 4000 | N13: 4000 | O13: =SUM(tblDochód[[#This Row],[jan]:[dec]]) -> 39000 | P13: =tblDochód[[#This Row],[year]]/12 -> 3250
B14: Przychód z tytułu odsetek | C14: 222 | D14: 33 | F14: 45 | H14: 25 | O14: =SUM(tblDochód[[#This Row],[jan]:[dec]]) -> 325 | P14: =tblDochód[[#This Row],[year]]/12 -> 27
B15: Dywidendy | D15: 5000 | G15: 5000 | J15: 5000 | M15: 5000 | O15: =SUM(tblDochód[[#This Row],[jan]:[dec]]) -> 20000 | P15: =tblDochód[[#This Row],[year]]/12 -> 1667
B16: zwroty kosztów | H16: 500 | I16: 500 | J16: 500 | O16: =SUM(tblDochód[[#This Row],[jan]:[dec]]) -> 1500 | P16: =tblDochód[[#This Row],[year]]/12 -> 125
B17: Inne | O17: =SUM(tblDochód[[#This Row],[jan]:[dec]]) -> 0 | P17: =tblDochód[[#This Row],[year]]/12 -> 0
B18: ŁĄCZNY PRZYCHÓD | C18: =SUM(tblDochód[jan]) -> 4222 | D18: =SUM(tblDochód[feb]) -> 9033 | E18: =SUM(tblDochód[mar]) -> 4000 | F18: =SUM(tblDochód[apr]) -> 4045 | G18: =SUM(tblDochód[may]) -> 9000 | H18: =SUM(tblDochód[jun]) -> 1525 | I18: =SUM(tblDochód[jul]) -> 1500 | J18: =SUM(tblDochód[aug]) -> 6500 | K18: =SUM(tblDochód[sep]) -> 4000 | L18: =SUM(tblDochód[oct]) -> 4000 | M18: =SUM(tblDochód[nov]) -> 9000 | N18: =SUM(tblDochód[dec]) -> 4000 | O18: =SUM(tblDochód[year]) -> 60825 | P18: =tblDochód[[#Totals],[year]]/12 -> 5069
B21: dom
B22: Kredyt/czynsz | C22: 850 | D22: 850 | E22: 850 | F22: 850 | G22: 850 | H22: 850 | I22: 850 | J22: 850 | K22: 850 | L22: 850 | M22: 900 | N22: 900 | O22: =SUM(KategoriaWydatków_01[[#This Row],[jan]:[dec]]) -> 10300 | P22: =KategoriaWydatków_01[[#This Row],[year]]/12 -> 858
B23: Elektryczność | C23: 200 | D23: 200 | E23: 175 | F23: 150 | G23: 150 | H23: 175 | I23: 225 | J23: 275 | K23: 200 | L23: 150 | M23: 150 | N23: 150 | O23: =SUM(KategoriaWydatków_01[[#This Row],[jan]:[dec]]) -> 2200 | P23: =KategoriaWydatków_01[[#This Row],[year]]/12 -> 183
B24: Telefon | C24: 50 | D24: 50 | E24: 100 | F24: 100 | G24: 50 | H24: 50 | I24: 100 | J24: 100 | K24: 50 | L24: 50 | M24: 50 | N24: 50 | O24: =SUM(KategoriaWydatków_01[[#This Row],[jan]:[dec]]) -> 800 | P24: =KategoriaWydatków_01[[#This Row],[year]]/12 -> 67
B25: TV kablowa/satelitarna | C25: 69 | D25: 69 | E25: 69 | F25: 69 | G25: 69 | H25: 69 | I25: 69 | J25: 69 | K25: 69 | L25: 69 | M25: 69 | N25: 69 | O25: =SUM(KategoriaWydatków_01[[#This Row],[jan]:[dec]]) -> 828 | P25: =KategoriaWydatków_01[[#This Row],[year]]/12 -> 69
B26: Internet | C26: 39 | D26: 39 | E26: 39 | F26: 39 | G26: 39 | H26: 39 | I26: 39 | J26: 39 | K26: 39 | L26: 39 | M26: 39 | N26: 39 | O26: =SUM(KategoriaWydatków_01[[#This Row],[jan]:[dec]]) -> 468 | P26: =KategoriaWydatków_01[[#This Row],[year]]/12 -> 39
B27: =UPPER(B21 &" — ŁĄCZNIE" ) -> DOM — ŁĄCZNIE | C27: =SUM(KategoriaWydatków_01[jan]) -> 1208 | D27: =SUM(KategoriaWydatków_01[feb]) -> 1208 | E27: =SUM(KategoriaWydatków_01[mar]) -> 1233 | F27: =SUM(KategoriaWydatków_01[apr]) -> 1208 | G27: =SUM(KategoriaWydatków_01[may]) -> 1158 | H27: =SUM(KategoriaWydatków_01[jun]) -> 1183 | I27: =SUM(KategoriaWydatków_01[jul]) -> 1283 | J27: =SUM(KategoriaWydatków_01[aug]) -> 1333 | K27: =SUM(KategoriaWydatków_01[sep]) -> 1208 | L27: =SUM(KategoriaWydatków_01[oct]) -> 1158 | M27: =SUM(KategoriaWydatków_01[nov]) -> 1208 | N27: =SUM(KategoriaWydatków_01[dec]) -> 1208 | O27: =SUM(KategoriaWydatków_01[year]) -> 14596 | P27: =KategoriaWydatków_01[[#Totals],[year]]/12 -> 1216
B30: codzienne wydatki
B31: Artykuły spożywcze | C31: 345 | D31: 250 | E31: 200 | F31: 400 | G31: 350 | H31: 250 | I31: 400 | J31: 350 | K31: 250 | L31: 400 | M31: 350 | N31: 250 | O31: =SUM(KategoriaWydatków_02[[#This Row],[jan]:[dec]]) -> 3795 | P31: =KategoriaWydatków_02[[#This Row],[year]]/12 -> 316
B32: Ubrania | C32: 300 | F32: 300 | I32: 300 | L32: 300 | O32: =SUM(KategoriaWydatków_02[[#This Row],[jan]:[dec]]) -> 1200 | P32: =KategoriaWydatków_02[[#This Row],[year]]/12 -> 100
B33: Restauracje | C33: 125 | D33: 125 | E33: 300 | F33: 125 | G33: 125 | H33: 200 | I33: 125 | J33: 125 | K33: 125 | L33: 125 | M33: 125 | N33: 125 | O33: =SUM(KategoriaWydatków_02[[#This Row],[jan]:[dec]]) -> 1750 | P33: =KategoriaWydatków_02[[#This Row],[year]]/12 -> 146
B34: Fryzjer/kosmetyczka | C34: 25 | E34: 50 | G34: 25 | I34: 50 | K34: 25 | M34: 100 | O34: =SUM(KategoriaWydatków_02[[#This Row],[jan]:[dec]]) -> 275 | P34: =KategoriaWydatków_02[[#This Row],[year]]/12 -> 23
B35: Inne | O35: =SUM(KategoriaWydatków_02[[#This Row],[jan]:[dec]]) -> 0 | P35: =KategoriaWydatków_02[[#This Row],[year]]/12 -> 0
B36: =UPPER(B30 &" — ŁĄCZNIE" ) -> CODZIENNE WYDATKI — ŁĄCZNIE | C36: =SUM(KategoriaWydatków_02[jan]) -> 795 | D36: =SUM(KategoriaWydatków_02[feb]) -> 375 | E36: =SUM(KategoriaWydatków_02[mar]) -> 550 | F36: =SUM(KategoriaWydatków_02[apr]) -> 825 | G36: =SUM(KategoriaWydatków_02[may]) -> 500 | H36: =SUM(KategoriaWydatków_02[jun]) -> 450 | I36: =SUM(KategoriaWydatków_02[jul]) -> 875 | J36: =SUM(KategoriaWydatków_02[aug]) -> 475 | K36: =SUM(KategoriaWydatków_02[sep]) -> 400 | L36: =SUM(KategoriaWydatków_02[oct]) -> 825 | M36: =SUM(KategoriaWydatków_02[nov]) -> 575 | N36: =SUM(KategoriaWydatków_02[dec]) -> 375 | O36: =SUM(KategoriaWydatków_02[year]) -> 7020 | P36: =KategoriaWydatków_02[[#Totals],[year]]/12 -> 585
B39: dzieci
B40: Artykuły szkolne | C40: 123 | E40: 100 | J40: 345 | O40: =SUM(KategoriaWydatków_03[[#This Row],[jan]:[dec]]) -> 568 | P40: =KategoriaWydatków_03[[#This Row],[year]]/12 -> 47
B41: Ubrania | D41: 100 | G41: 100 | K41: 100 | N41: 100 | O41: =SUM(KategoriaWydatków_03[[#This Row],[jan]:[dec]]) -> 400 | P41: =KategoriaWydatków_03[[#This Row],[year]]/12 -> 33
B42: Kanapki | C42: 50 | D42: 50 | E42: 50 | F42: 50 | G42: 50 | H42: 50 | K42: 50 | L42: 50 | M42: 50 | N42: 50 | O42: =SUM(KategoriaWydatków_03[[#This Row],[jan]:[dec]]) -> 500 | P42: =KategoriaWydatków_03[[#This Row],[year]]/12 -> 42
B43: Medyczne | C43: 200 | D43: 200 | E43: 200 | F43: 200 | G43: 200 | H43: 200 | I43: 200 | J43: 200 | K43: 200 | L43: 200 | M43: 200 | N43: 200 | O43: =SUM(KategoriaWydatków_03[[#This Row],[jan]:[dec]]) -> 2400 | P43: =KategoriaWydatków_03[[#This Row],[year]]/12 -> 200
B44: Inne | C44: 2000 | D44: 150 | H44: 200 | L44: 100 | O44: =SUM(KategoriaWydatków_03[[#This Row],[jan]:[dec]]) -> 2450 | P44: =KategoriaWydatków_03[[#This Row],[year]]/12 -> 204
B45: =UPPER(B39 &" — ŁĄCZNIE" ) -> DZIECI — ŁĄCZNIE | C45: =SUM(KategoriaWydatków_03[jan]) -> 2373 | D45: =SUM(KategoriaWydatków_03[feb]) -> 500 | E45: =SUM(KategoriaWydatków_03[mar]) -> 350 | F45: =SUM(KategoriaWydatków_03[apr]) -> 250 | G45: =SUM(KategoriaWydatków_03[may]) -> 350 | H45: =SUM(KategoriaWydatków_03[jun]) -> 450 | I45: =SUM(KategoriaWydatków_03[jul]) -> 200 | J45: =SUM(KategoriaWydatków_03[aug]) -> 545 | K45: =SUM(KategoriaWydatków_03[sep]) -> 350 | L45: =SUM(KategoriaWydatków_03[oct]) -> 350 | M45: =SUM(KategoriaWydatków_03[nov]) -> 250 | N45: =SUM(KategoriaWydatków_03[dec]) -> 350 | O45: =SUM(KategoriaWydatków_03[year]) -> 6318 | P45: =KategoriaWydatków_03[[#Totals],[year]]/12 -> 527
B48: transport
B49: Opłaty samochodowe | C49: 600 | D49: 600 | E49: 600 | F49: 600 | G49: 600 | H49: 600 | I49: 600 | J49: 600 | K49: 600 | L49: 600 | M49: 600 | N49: 600 | O49: =SUM(KategoriaWydatków_04[[#This Row],[jan]:[dec]]) -> 7200 | P49: =KategoriaWydatków_04[[#This Row],[year]]/12 -> 600
B50: Paliwo | C50: 325 | D50: 325 | E50: 325 | F50: 325 | G50: 325 | H50: 500 | I50: 500 | J50: 500 | K50: 325 | L50: 325 | M50: 325 | N50: 325 | O50: =SUM(KategoriaWydatków_04[[#This Row],[jan]:[dec]]) -> 4425 | P50: =KategoriaWydatków_04[[#This Row],[year]]/12 -> 369
B51: Naprawy | D51: 100 | F51: 100 | H51: 100 | J51: 100 | L51: 100 | O51: =SUM(KategoriaWydatków_04[[#This Row],[jan]:[dec]]) -> 500 | P51: =KategoriaWydatków_04[[#This Row],[year]]/12 -> 42
B52: Przegląd | C52: 185 | K52: 225 | O52: =SUM(KategoriaWydatków_04[[#This Row],[jan]:[dec]]) -> 410 | P52: =KategoriaWydatków_04[[#This Row],[year]]/12 -> 34
B53: Inne | G53: 400 | O53: =SUM(KategoriaWydatków_04[[#This Row],[jan]:[dec]]) -> 400 | P53: =KategoriaWydatków_04[[#This Row],[year]]/12 -> 33
B54: =UPPER(B48 &" — ŁĄCZNIE" ) -> TRANSPORT — ŁĄCZNIE | C54: =SUM(KategoriaWydatków_04[jan]) -> 1110 | D54: =SUM(KategoriaWydatków_04[feb]) -> 1025 | E54: =SUM(KategoriaWydatków_04[mar]) -> 925 | F54: =SUM(KategoriaWydatków_04[apr]) -> 1025 | G54: =SUM(KategoriaWydatków_04[may]) -> 1325 | H54: =SUM(KategoriaWydatków_04[jun]) -> 1200 | I54: =SUM(KategoriaWydatków_04[jul]) -> 1100 | J54: =SUM(KategoriaWydatków_04[aug]) -> 1200 | K54: =SUM(KategoriaWydatków_04[sep]) -> 1150 | L54: =SUM(KategoriaWydatków_04[oct]) -> 1025 | M54: =SUM(KategoriaWydatków_04[nov]) -> 925 | N54: =SUM(KategoriaWydatków_04[dec]) -> 925 | O54: =SUM(KategoriaWydatków_04[year]) -> 12935 | P54: =KategoriaWydatków_04[[#Totals],[year]]/12 -> 1078
B57: zdrowie
B58: Lekarz/dentysta | D58: 35 | G58: 35 | H58: 35 | I58: 35 | L58: 35 | O58: =SUM(KategoriaWydatków_05[[#This Row],[jan]:[dec]]) -> 175 | P58: =KategoriaWydatków_05[[#This Row],[year]]/12 -> 15
B59: Leki | C59: 25 | D59: 25 | E59: 25 | F59: 25 | G59: 25 | H59: 25 | I59: 25 | J59: 25 | K59: 25 | L59: 25 | M59: 25 | N59: 25 | O59: =SUM(KategoriaWydatków_05[[#This Row],[jan]:[dec]]) -> 300 | P59: =KategoriaWydatków_05[[#This Row],[year]]/12 -> 25
B60: Inne | E60: 150 | K60: 150 | O60: =SUM(KategoriaWydatków_05[[#This Row],[jan]:[dec]]) -> 300 | P60: =KategoriaWydatków_05[[#This Row],[year]]/12 -> 25
B61: =UPPER(B57 &" — ŁĄCZNIE" ) -> ZDROWIE — ŁĄCZNIE | C61: =SUM(KategoriaWydatków_05[jan]) -> 25 | D61: =SUM(KategoriaWydatków_05[feb]) -> 60 | E61: =SUM(KategoriaWydatków_05[mar]) -> 175 | F61: =SUM(KategoriaWydatków_05[apr]) -> 25 | G61: =SUM(KategoriaWydatków_05[may]) -> 60 | H61: =SUM(KategoriaWydatków_05[jun]) -> 60 | I61: =SUM(KategoriaWydatków_05[jul]) -> 60 | J61: =SUM(KategoriaWydatków_05[aug]) -> 25 | K61: =SUM(KategoriaWydatków_05[sep]) -> 175 | L61: =SUM(KategoriaWydatków_05[oct]) -> 60 | M61: =SUM(KategoriaWydatków_05[nov]) -> 25 | N61: =SUM(KategoriaWydatków_05[dec]) -> 25 | O61: =SUM(KategoriaWydatków_05[year]) -> 775 | P61: =KategoriaWydatków_05[[#Totals],[year]]/12 -> 65
B64: ubezpieczenia
B65: Samochodowe | C65: 150 | D65: 150 | E65: 150 | F65: 150 | G65: 150 | H65: 150 | I65: 150 | J65: 150 | K65: 150 | L65: 150 | M65: 150 | N65: 150 | O65: =SUM(KategoriaWydatków_06[[#This Row],[jan]:[dec]]) -> 1800 | P65: =KategoriaWydatków_06[[#This Row],[year]]/12 -> 150
B66: Zdrowotne | C66: 675 | D66: 675 | E66: 675 | F66: 675 | G66: 675 | H66: 675 | I66: 675 | J66: 675 | K66: 675 | L66: 675 | M66: 675 | N66: 675 | O66: =SUM(KategoriaWydatków_06[[#This Row],[jan]:[dec]]) -> 8100 | P66: =KategoriaWydatków_06[[#This Row],[year]]/12 -> 675
B67: Na życie | C67: 150 | D67: 150 | E67: 150 | F67: 150 | G67: 150 | H67: 150 | I67: 150 | J67: 150 | K67: 150 | L67: 150 | M67: 150 | N67: 150 | O67: =SUM(KategoriaWydatków_06[[#This Row],[jan]:[dec]]) -> 1800 | P67: =KategoriaWydatków_06[[#This Row],[year]]/12 -> 150
B68: =UPPER(B64 &" — ŁĄCZNIE" ) -> UBEZPIECZENIA — ŁĄCZNIE | C68: =SUM(KategoriaWydatków_06[jan]) -> 975 | D68: =SUM(KategoriaWydatków_06[feb]) -> 975 | E68: =SUM(KategoriaWydatków_06[mar]) -> 975 | F68: =SUM(KategoriaWydatków_06[apr]) -> 975 | G68: =SUM(KategoriaWydatków_06[may]) -> 975 | H68: =SUM(KategoriaWydatków_06[jun]) -> 975 | I68: =SUM(KategoriaWydatków_06[jul]) -> 975 | J68: =SUM(KategoriaWydatków_06[aug]) -> 975 | K68: =SUM(KategoriaWydatków_06[sep]) -> 975 | L68: =SUM(KategoriaWydatków_06[oct]) -> 975 | M68: =SUM(KategoriaWydatków_06[nov]) -> 975 | N68: =SUM(KategoriaWydatków_06[dec]) -> 975 | O68: =SUM(KategoriaWydatków_06[year]) -> 11700 | P68: =KategoriaWydatków_06[[#Totals],[year]]/12 -> 975
B71: edukacja
B72: Czesne | E72: 400 | K72: 400 | O72: =SUM(KategoriaWydatków_07[[#This Row],[jan]:[dec]]) -> 800 | P72: =KategoriaWydatków_07[[#This Row],[year]]/12 -> 67
B73: Książki | E73: 225 | K73: 225 | O73: =SUM(KategoriaWydatków_07[[#This Row],[jan]:[dec]]) -> 450 | P73: =KategoriaWydatków_07[[#This Row],[year]]/12 -> 38
B74: Inne | O74: =SUM(KategoriaWydatków_07[[#This Row],[jan]:[dec]]) -> 0 | P74: =KategoriaWydatków_07[[#This Row],[year]]/12 -> 0
B75: =UPPER(B71 &" — ŁĄCZNIE" ) -> EDUKACJA — ŁĄCZNIE | C75: =SUM(KategoriaWydatków_07[jan]) -> 0 | D75: =SUM(KategoriaWydatków_07[feb]) -> 0 | E75: =SUM(KategoriaWydatków_07[mar]) -> 625 | F75: =SUM(KategoriaWydatków_07[apr]) -> 0 | G75: =SUM(KategoriaWydatków_07[may]) -> 0 | H75: =SUM(KategoriaWydatków_07[jun]) -> 0 | I75: =SUM(KategoriaWydatków_07[jul]) -> 0 | J75: =SUM(KategoriaWydatków_07[aug]) -> 0 | K75: =SUM(KategoriaWydatków_07[sep]) -> 625 | L75: =SUM(KategoriaWydatków_07[oct]) -> 0 | M75: =SUM(KategoriaWydatków_07[nov]) -> 0 | N75: =SUM(KategoriaWydatków_07[dec]) -> 0 | O75: =SUM(KategoriaWydatków_07[year]) -> 1250 | P75: =KategoriaWydatków_07[[#Totals],[year]]/12 -> 104
B78: cele charytatywne
B79: Prezenty | D79: 100 | H79: 100 | L79: 100 | O79: =SUM(KategoriaWydatków_08[[#This Row],[jan]:[dec]]) -> 300 | P79: =KategoriaWydatków_08[[#This Row],[year]]/12 -> 25
B80: Darowizny | E80: 100 | G80: 100 | I80: 100 | K80: 100 | M80: 100 | O80: =SUM(KategoriaWydatków_08[[#This Row],[jan]:[dec]]) -> 500 | P80: =KategoriaWydatków_08[[#This Row],[year]]/12 -> 42
B81: Inne | F81: 100 | J81: 100 | N81: 100 | O81: =SUM(KategoriaWydatków_08[[#This Row],[jan]:[dec]]) -> 300 | P81: =KategoriaWydatków_08[[#This Row],[year]]/12 -> 25
B82: =UPPER(B78 &" — ŁĄCZNIE" ) -> CELE CHARYTATYWNE — ŁĄCZNIE | C82: =SUM(KategoriaWydatków_08[jan]) -> 0 | D82: =SUM(KategoriaWydatków_08[feb]) -> 100 | E82: =SUM(KategoriaWydatków_08[mar]) -> 100 | F82: =SUM(KategoriaWydatków_08[apr]) -> 100 | G82: =SUM(KategoriaWydatków_08[may]) -> 100 | H82: =SUM(KategoriaWydatków_08[jun]) -> 100 | I82: =SUM(KategoriaWydatków_08[jul]) -> 100 | J82: =SUM(KategoriaWydatków_08[aug]) -> 100 | K82: =SUM(KategoriaWydatków_08[sep]) -> 100 | L82: =SUM(KategoriaWydatków_08[oct]) -> 100 | M82: =SUM(KategoriaWydatków_08[nov]) -> 100 | N82: =SUM(KategoriaWydatków_08[dec]) -> 100 | O82: =SUM(KategoriaWydatków_08[year]) -> 1100 | P82: =KategoriaWydatków_08[[#Totals],[year]]/12 -> 92
B85: oszczędności
B86: Fundusz na wydatki specjalne | C86: 100 | D86: 100 | E86: 100 | F86: 100 | G86: 100 | K86: 100 | L86: 100 | M86: 100 | N86: 100 | O86: =SUM(KategoriaWydatków_09[[#This Row],[jan]:[dec]]) -> 900 | P86: =KategoriaWydatków_09[[#This Row],[year]]/12 -> 75
B87: Emerytura | C87: 500 | D87: 500 | E87: 500 | F87: 500 | G87: 500 | H87: 500 | I87: 500 | J87: 500 | K87: 500 | L87: 500 | M87: 500 | N87: 500 | O87: =SUM(KategoriaWydatków_09[[#This Row],[jan]:[dec]]) -> 6000 | P87: =KategoriaWydatków_09[[#This Row],[year]]/12 -> 500
B88: Przelew na konto oszczędnościowe | C88: 200 | D88: 200 | E88: 200 | F88: 200 | G88: 200 | K88: 200 | L88: 200 | M88: 200 | N88: 200 | O88: =SUM(KategoriaWydatków_09[[#This Row],[jan]:[dec]]) -> 1800 | P88: =KategoriaWydatków_09[[#This Row],[year]]/12 -> 150
B89: =UPPER(B85 &" — ŁĄCZNIE" ) -> OSZCZĘDNOŚCI — ŁĄCZNIE | C89: =SUM(KategoriaWydatków_09[jan]) -> 800 | D89: =SUM(KategoriaWydatków_09[feb]) -> 800 | E89: =SUM(KategoriaWydatków_09[mar]) -> 800 | F89: =SUM(KategoriaWydatków_09[apr]) -> 800 | G89: =SUM(KategoriaWydatków_09[may]) -> 800 | H89: =SUM(KategoriaWydatków_09[jun]) -> 500 | I89: =SUM(KategoriaWydatków_09[jul]) -> 500 | J89: =SUM(KategoriaWydatków_09[aug]) -> 500 | K89: =SUM(KategoriaWydatków_09[sep]) -> 800 | L89: =SUM(KategoriaWydatków_09[oct]) -> 800 | M89: =SUM(KategoriaWydatków_09[nov]) -> 800 | N89: =SUM(KategoriaWydatków_09[dec]) -> 800 | O89: =SUM(KategoriaWydatków_09[year]) -> 8700 | P89: =KategoriaWydatków_09[[#Totals],[year]]/12 -> 725
B92: zobowiązania
B93: Karta kredytowa nr 1 | C93: 145 | D93: 145 | E93: 145 | F93: 145 | G93: 145 | H93: 145 | I93: 145 | J93: 145 | K93: 145 | L93: 145 | M93: 145 | N93: 145 | O93: =SUM(KategoriaWydatków_10[[#This Row],[jan]:[dec]]) -> 1740 | P93: =KategoriaWydatków_10[[#This Row],[year]]/12 -> 145
B94: Podatek dochodowy | C94: 450 | F94: 450 | I94: 450 | L94: 450 | O94: =SUM(KategoriaWydatków_10[[#This Row],[jan]:[dec]]) -> 1800 | P94: =KategoriaWydatków_10[[#This Row],[year]]/12 -> 150
B95: Pożyczka studencka | C95: 55 | D95: 55 | E95: 55 | F95: 55 | G95: 55 | H95: 55 | I95: 55 | J95: 55 | K95: 55 | L95: 55 | M95: 55 | N95: 55 | O95: =SUM(KategoriaWydatków_10[[#This Row],[jan]:[dec]]) -> 660 | P95: =KategoriaWydatków_10[[#This Row],[year]]/12 -> 55
B96: =UPPER(B92 &" — ŁĄCZNIE" ) -> ZOBOWIĄZANIA — ŁĄCZNIE | C96: =SUM(KategoriaWydatków_10[jan]) -> 650 | D96: =SUM(KategoriaWydatków_10[feb]) -> 200 | E96: =SUM(KategoriaWydatków_10[mar]) -> 200 | F96: =SUM(KategoriaWydatków_10[apr]) -> 650 | G96: =SUM(KategoriaWydatków_10[may]) -> 200 | H96: =SUM(KategoriaWydatków_10[jun]) -> 200 | I96: =SUM(KategoriaWydatków_10[jul]) -> 650 | J96: =SUM(KategoriaWydatków_10[aug]) -> 200 | K96: =SUM(KategoriaWydatków_10[sep]) -> 200 | L96: =SUM(KategoriaWydatków_10[oct]) -> 650 | M96: =SUM(KategoriaWydatków_10[nov]) -> 200 | N96: =SUM(KategoriaWydatków_10[dec]) -> 200 | O96: =SUM(KategoriaWydatków_10[year]) -> 4200 | P96: =KategoriaWydatków_10[[#Totals],[year]]/12 -> 350
O100: =SUM(KategoriaWydatków_11[[#This Row],[jan]:[dec]]) -> 0 | P100: =KategoriaWydatków_11[[#This Row],[year]]/12 -> 0
O101: =SUM(KategoriaWydatków_11[[#This Row],[jan]:[dec]]) -> 0 | P101: =KategoriaWydatków_11[[#This Row],[year]]/12 -> 0
O102: =SUM(KategoriaWydatków_11[[#This Row],[jan]:[dec]]) -> 0 | P102: =KategoriaWydatków_11[[#This Row],[year]]/12 -> 0
B103: =UPPER("ŁĄCZNIE " & B99) -> ŁĄCZNIE | C103: =SUM(KategoriaWydatków_11[jan]) -> 0 | D103: =SUM(KategoriaWydatków_11[feb]) -> 0 | E103: =SUM(KategoriaWydatków_11[mar]) -> 0 | F103: =SUM(KategoriaWydatków_11[apr]) -> 0 | G103: =SUM(KategoriaWydatków_11[may]) -> 0 | H103: =SUM(KategoriaWydatków_11[jun]) -> 0 | I103: =SUM(KategoriaWydatków_11[jul]) -> 0 | J103: =SUM(KategoriaWydatków_11[aug]) -> 0 | K103: =SUM(KategoriaWydatków_11[sep]) -> 0 | L103: =SUM(KategoriaWydatków_11[oct]) -> 0 | M103: =SUM(KategoriaWydatków_11[nov]) -> 0 | N103: =SUM(KategoriaWydatków_11[dec]) -> 0 | O103: =SUM(KategoriaWydatków_11[year]) -> 0 | P103: =KategoriaWydatków_11[[#Totals],[year]]/12 -> 0
O107: =SUM(KategoriaWydatków_12[[#This Row],[jan]:[dec]]) -> 0 | P107: =KategoriaWydatków_12[[#This Row],[year]]/12 -> 0
O108: =SUM(KategoriaWydatków_12[[#This Row],[jan]:[dec]]) -> 0 | P108: =KategoriaWydatków_12[[#This Row],[year]]/12 -> 0
O109: =SUM(KategoriaWydatków_12[[#This Row],[jan]:[dec]]) -> 0 | P109: =KategoriaWydatków_12[[#This Row],[year]]/12 -> 0
B110: =UPPER("ŁĄCZNIE " & B106) -> ŁĄCZNIE | C110: =SUM(KategoriaWydatków_12[jan]) -> 0 | D110: =SUM(KategoriaWydatków_12[feb]) -> 0 | E110: =SUM(KategoriaWydatków_12[mar]) -> 0 | F110: =SUM(KategoriaWydatków_12[apr]) -> 0 | G110: =SUM(KategoriaWydatków_12[may]) -> 0 | H110: =SUM(KategoriaWydatków_12[jun]) -> 0 | I110: =SUM(KategoriaWydatków_12[jul]) -> 0 | J110: =SUM(KategoriaWydatków_12[aug]) -> 0 | K110: =SUM(KategoriaWydatków_12[sep]) -> 0 | L110: =SUM(KategoriaWydatków_12[oct]) -> 0 | M110: =SUM(KategoriaWydatków_12[nov]) -> 0 | N110: =SUM(KategoriaWydatków_12[dec]) -> 0 | O110: =SUM(KategoriaWydatków_12[year]) -> 0 | P110: =KategoriaWydatków_12[[#Totals],[year]]/12 -> 0
O114: =SUM(KategoriaWydatków_13[[#This Row],[jan]:[dec]]) -> 0 | P114: =KategoriaWydatków_13[[#This Row],[year]]/12 -> 0
O115: =SUM(KategoriaWydatków_13[[#This Row],[jan]:[dec]]) -> 0 | P115: =KategoriaWydatków_13[[#This Row],[year]]/12 -> 0
O116: =SUM(KategoriaWydatków_13[[#This Row],[jan]:[dec]]) -> 0 | P116: =KategoriaWydatków_13[[#This Row],[year]]/12 -> 0
B117: =UPPER("ŁĄCZNIE " & B113) -> ŁĄCZNIE | C117: =SUM(KategoriaWydatków_13[jan]) -> 0 | D117: =SUM(KategoriaWydatków_13[feb]) -> 0 | E117: =SUM(KategoriaWydatków_13[mar]) -> 0 | F117: =SUM(KategoriaWydatków_13[apr]) -> 0 | G117: =SUM(KategoriaWydatków_13[may]) -> 0 | H117: =SUM(KategoriaWydatków_13[jun]) -> 0 | I117: =SUM(KategoriaWydatków_13[jul]) -> 0 | J117: =SUM(KategoriaWydatków_13[aug]) -> 0 | K117: =SUM(KategoriaWydatków_13[sep]) -> 0 | L117: =SUM(KategoriaWydatków_13[oct]) -> 0 | M117: =SUM(KategoriaWydatków_13[nov]) -> 0 | N117: =SUM(KategoriaWydatków_13[dec]) -> 0 | O117: =SUM(KategoriaWydatków_13[year]) -> 0 | P117: =KategoriaWydatków_13[[#Totals],[year]]/12 -> 0
O121: =SUM(KategoriaWydatków_14[[#This Row],[jan]:[dec]]) -> 0 | P121: =KategoriaWydatków_14[[#This Row],[year]]/12 -> 0
O122: =SUM(KategoriaWydatków_14[[#This Row],[jan]:[dec]]) -> 0 | P122: =KategoriaWydatków_14[[#This Row],[year]]/12 -> 0
O123: =SUM(KategoriaWydatków_14[[#This Row],[jan]:[dec]]) -> 0 | P123: =KategoriaWydatków_14[[#This Row],[year]]/12 -> 0
B124: =UPPER("ŁĄCZNIE " & B120) -> ŁĄCZNIE | C124: =SUM(KategoriaWydatków_14[jan]) -> 0 | D124: =SUM(KategoriaWydatków_14[feb]) -> 0 | E124: =SUM(KategoriaWydatków_14[mar]) -> 0 | F124: =SUM(KategoriaWydatków_14[apr]) -> 0 | G124: =SUM(KategoriaWydatków_14[may]) -> 0 | H124: =SUM(KategoriaWydatków_14[jun]) -> 0 | I124: =SUM(KategoriaWydatków_14[jul]) -> 0 | J124: =SUM(KategoriaWydatków_14[aug]) -> 0 | K124: =SUM(KategoriaWydatków_14[sep]) -> 0 | L124: =SUM(KategoriaWydatków_14[oct]) -> 0 | M124: =SUM(KategoriaWydatków_14[nov]) -> 0 | N124: =SUM(KategoriaWydatków_14[dec]) -> 0 | O124: =SUM(KategoriaWydatków_14[year]) -> 0 | P124: =KategoriaWydatków_14[[#Totals],[year]]/12 -> 0
O128: =SUM(KategoriaWydatków_15[[#This Row],[jan]:[dec]]) -> 0 | P128: =KategoriaWydatków_15[[#This Row],[year]]/12 -> 0
O129: =SUM(KategoriaWydatków_15[[#This Row],[jan]:[dec]]) -> 0 | P129: =KategoriaWydatków_15[[#This Row],[year]]/12 -> 0
O130: =SUM(KategoriaWydatków_15[[#This Row],[jan]:[dec]]) -> 0 | P130: =KategoriaWydatków_15[[#This Row],[year]]/12 -> 0
B131: =UPPER("ŁĄCZNIE " & B127) -> ŁĄCZNIE | C131: =SUM(KategoriaWydatków_15[jan]) -> 0 | D131: =SUM(KategoriaWydatków_15[feb]) -> 0 | E131: =SUM(KategoriaWydatków_15[mar]) -> 0 | F131: =SUM(KategoriaWydatków_15[apr]) -> 0 | G131: =SUM(KategoriaWydatków_15[may]) -> 0 | H131: =SUM(KategoriaWydatków_15[jun]) -> 0 | I131: =SUM(KategoriaWydatków_15[jul]) -> 0 | J131: =SUM(KategoriaWydatków_15[aug]) -> 0 | K131: =SUM(KategoriaWydatków_15[sep]) -> 0 | L131: =SUM(KategoriaWydatków_15[oct]) -> 0 | M131: =SUM(KategoriaWydatków_15[nov]) -> 0 | N131: =SUM(KategoriaWydatków_15[dec]) -> 0 | O131: =SUM(KategoriaWydatków_15[year]) -> 0 | P131: =KategoriaWydatków_15[[#Totals],[year]]/12 -> 0

Sheet Ustawienia
B1: RODZINA ROLECKICH 2012
B2: przychód | D2: wydatki
B3: wynagrodzenia i napiwki
B4: przychód z tytułu odsetek | D4: dom | F4: dom | H4: codzienne wydatki | J4: dzieci
B5: dywidendy | D5: codzienne wydatki | F5: kredyt/czynsz | H5: artykuły spożywcze | J5: medyczne
B6: otrzymane prezenty | D6: dzieci | F6: elektryczność | H6: artykuły osobiste | J6: ubrania
B7: zwroty kosztów | D7: transport | F7: gaz/olej opałowy | H7: ubrania | J7: czesne
B8: przelew z konta oszczędnościowego | D8: zdrowie | F8: woda/ścieki/wywóz śmieci | H8: sprzątanie | J8: kanapki
B9: inne | D9: ubezpieczenia | F9: telefon | H9: restauracje | J9: artykuły szkolne
D10: edukacja | F10: TV kablowa/satelitarna | H10: pralnia chemiczna | J10: niania
D11: cele charytatywne | F11: Internet | H11: fryzjer/kosmetyczka | J11: zabawki/gry
D12: oszczędności | F12: wyposażenie/urządzenia | H12: inne | J12: inne
D13: zobowiązania | F13: trawnik/ogród
D14: rozrywka | F14: materiały eksploatacyjne
D15: zwierzęta domowe | F15: konserwacja
D16: subskrypcje | F16: usprawnienia
D17: urlop | F17: inne
D18: różne
F20: transport | H20: zdrowie | J20: ubezpieczenia
F21: opłaty samochodowe | H21: lekarz/dentysta | J21: samochodowe
F22: paliwo | H22: leki | J22: zdrowotne
F23: opłaty za autobus/taksówkę/pociąg | H23: opłaty za klub sportowy | J23: mieszkaniowe
F24: naprawy | H24: nagłe wypadki | J24: na życie
F25: przegląd | H25: inne | J25: inne
F26: inne
F29: edukacja | H29: cele charytatywne | J29: oszczędności
F30: czesne | H30: prezenty | J30: fundusz na wydatki specjalne
F31: książki | H31: darowizny | J31: przelew na konto oszczędnościowe
F32: lekcje muzyki | H32: na cele religijne | J32: emerytura
F33: inne | H33: inne | J33: lokaty
J34: edukacja
J35: inne
F38: zobowiązania | H38: rozrywka | J38: zwierzęta domowe
F39: pożyczka studencka | H39: filmy wideo/DVD | J39: karma
F40: inna pożyczka | H40: muzyka | J40: medyczne
F41: karta kredytowa nr 1 | H41: gry | J41: zabawki/artykuły
F42: karta kredytowa nr 2 | H42: wypożyczalnie | J42: inne
F43: karta kredytowa nr 3 | H43: kino
F44: alimenty | H44: koncerty/przedstawienia
F45: podatek dochodowy | H45: książki
F46: podatek od nieruchomości | H46: hobby
F47: inne podatki | H47: filmy/zdjęcia
F48: opłaty członkowskie | H48: sport
F49: opłaty prawne | H49: wypoczynek poza domem
F50: inne | H50: zabawki/gadżety
H51: inne
F53: subskrypcje | H53: urlop | J53: różne
F54: gazety | H54: podróż | J54: opłaty bankowe
F55: czasopisma | H55: zakwaterowanie | J55: opłaty pocztowe
F56: opłaty | H56: wyżywienie | J56: inne
F57: członkostwo w klubach | H57: wypożyczony samochód
F58: inne | H58: rozrywka
H59: inne

Sheet Dane wykresu (hidden)
B1: *** Ten arkusz powinien pozostać ukryty ***
B4: Okres | C4: 3
C6: sty | D6: lut | E6: mar | F6: kwi | G6: maj | H6: cze | I6: lip | J6: się | K6: wrz | L6: paź | M6: lis | N6: gru | O6: rok | P6: średnio
B7: =LOWER(Budżet!B127) ->  | C7: =SUM(KategoriaWydatków_15[jan]) -> 0 | D7: =SUM(KategoriaWydatków_15[feb]) -> 0 | E7: =SUM(KategoriaWydatków_15[mar]) -> 0 | F7: =SUM(KategoriaWydatków_15[apr]) -> 0 | G7: =SUM(KategoriaWydatków_15[may]) -> 0 | H7: =SUM(KategoriaWydatków_15[jun]) -> 0 | I7: =SUM(KategoriaWydatków_15[jul]) -> 0 | J7: =SUM(KategoriaWydatków_15[aug]) -> 0 | K7: =SUM(KategoriaWydatków_15[sep]) -> 0 | L7: =SUM(KategoriaWydatków_15[oct]) -> 0 | M7: =SUM(KategoriaWydatków_15[nov]) -> 0 | N7: =SUM(KategoriaWydatków_15[dec]) -> 0 | O7: =SUM(KategoriaWydatków_15[year]) -> 0 | P7: =SUM(KategoriaWydatków_15[avg]) -> 0
B8: =LOWER(Budżet!B120) ->  | C8: =SUM(KategoriaWydatków_14[jan]) -> 0 | D8: =SUM(KategoriaWydatków_14[feb]) -> 0 | E8: =SUM(KategoriaWydatków_14[mar]) -> 0 | F8: =SUM(KategoriaWydatków_14[apr]) -> 0 | G8: =SUM(KategoriaWydatków_14[may]) -> 0 | H8: =SUM(KategoriaWydatków_14[jun]) -> 0 | I8: =SUM(KategoriaWydatków_14[jul]) -> 0 | J8: =SUM(KategoriaWydatków_14[aug]) -> 0 | K8: =SUM(KategoriaWydatków_14[sep]) -> 0 | L8: =SUM(KategoriaWydatków_14[oct]) -> 0 | M8: =SUM(KategoriaWydatków_14[nov]) -> 0 | N8: =SUM(KategoriaWydatków_14[dec]) -> 0 | O8: =SUM(KategoriaWydatków_14[year]) -> 0 | P8: =SUM(KategoriaWydatków_14[avg]) -> 0
B9: =LOWER(Budżet!B113) ->  | C9: =SUM(KategoriaWydatków_13[jan]) -> 0 | D9: =SUM(KategoriaWydatków_13[feb]) -> 0 | E9: =SUM(KategoriaWydatków_13[mar]) -> 0 | F9: =SUM(KategoriaWydatków_13[apr]) -> 0 | G9: =SUM(KategoriaWydatków_13[may]) -> 0 | H9: =SUM(KategoriaWydatków_13[jun]) -> 0 | I9: =SUM(KategoriaWydatków_13[jul]) -> 0 | J9: =SUM(KategoriaWydatków_13[aug]) -> 0 | K9: =SUM(KategoriaWydatków_13[sep]) -> 0 | L9: =SUM(KategoriaWydatków_13[oct]) -> 0 | M9: =SUM(KategoriaWydatków_13[nov]) -> 0 | N9: =SUM(KategoriaWydatków_13[dec]) -> 0 | O9: =SUM(KategoriaWydatków_13[year]) -> 0 | P9: =SUM(KategoriaWydatków_13[avg]) -> 0
B10: =LOWER(Budżet!B106) ->  | C10: =SUM(KategoriaWydatków_12[jan]) -> 0 | D10: =SUM(KategoriaWydatków_12[feb]) -> 0 | E10: =SUM(KategoriaWydatków_12[mar]) -> 0 | F10: =SUM(KategoriaWydatków_12[apr]) -> 0 | G10: =SUM(KategoriaWydatków_12[may]) -> 0 | H10: =SUM(KategoriaWydatków_12[jun]) -> 0 | I10: =SUM(KategoriaWydatków_12[jul]) -> 0 | J10: =SUM(KategoriaWydatków_12[aug]) -> 0 | K10: =SUM(KategoriaWydatków_12[sep]) -> 0 | L10: =SUM(KategoriaWydatków_12[oct]) -> 0 | M10: =SUM(KategoriaWydatków_12[nov]) -> 0 | N10: =SUM(KategoriaWydatków_12[dec]) -> 0 | O10: =SUM(KategoriaWydatków_12[year]) -> 0 | P10: =SUM(KategoriaWydatków_12[avg]) -> 0
B11: =LOWER(Budżet!B99) ->  | C11: =SUM(KategoriaWydatków_11[jan]) -> 0 | D11: =SUM(KategoriaWydatków_11[feb]) -> 0 | E11: =SUM(KategoriaWydatków_11[mar]) -> 0 | F11: =SUM(KategoriaWydatków_11[apr]) -> 0 | G11: =SUM(KategoriaWydatków_11[may]) -> 0 | H11: =SUM(KategoriaWydatków_11[jun]) -> 0 | I11: =SUM(KategoriaWydatków_11[jul]) -> 0 | J11: =SUM(KategoriaWydatków_11[aug]) -> 0 | K11: =SUM(KategoriaWydatków_11[sep]) -> 0 | L11: =SUM(KategoriaWydatków_11[oct]) -> 0 | M11: =SUM(KategoriaWydatków_11[nov]) -> 0 | N11: =SUM(KategoriaWydatków_11[dec]) -> 0 | O11: =SUM(KategoriaWydatków_11[year]) -> 0 | P11: =SUM(KategoriaWydatków_11[avg]) -> 0
B12: =LOWER(Budżet!B92) -> zobowiązania | C12: =SUM(KategoriaWydatków_10[jan]) -> 650 | D12: =SUM(KategoriaWydatków_10[feb]) -> 200 | E12: =SUM(KategoriaWydatków_10[mar]) -> 200 | F12: =SUM(KategoriaWydatków_10[apr]) -> 650 | G12: =SUM(KategoriaWydatków_10[may]) -> 200 | H12: =SUM(KategoriaWydatków_10[jun]) -> 200 | I12: =SUM(KategoriaWydatków_10[jul]) -> 650 | J12: =SUM(KategoriaWydatków_10[aug]) -> 200 | K12: =SUM(KategoriaWydatków_10[sep]) -> 200 | L12: =SUM(KategoriaWydatków_10[oct]) -> 650 | M12: =SUM(KategoriaWydatków_10[nov]) -> 200 | N12: =SUM(KategoriaWydatków_10[dec]) -> 200 | O12: =SUM(KategoriaWydatków_10[year]) -> 4,200 | P12: =SUM(KategoriaWydatków_10[avg]) -> 350
B13: =LOWER(Budżet!B85) -> oszczędności | C13: =SUM(KategoriaWydatków_09[jan]) -> 800 | D13: =SUM(KategoriaWydatków_09[feb]) -> 800 | E13: =SUM(KategoriaWydatków_09[mar]) -> 800 | F13: =SUM(KategoriaWydatków_09[apr]) -> 800 | G13: =SUM(KategoriaWydatków_09[may]) -> 800 | H13: =SUM(KategoriaWydatków_09[jun]) -> 500 | I13: =SUM(KategoriaWydatków_09[jul]) -> 500 | J13: =SUM(KategoriaWydatków_09[aug]) -> 500 | K13: =SUM(KategoriaWydatków_09[sep]) -> 800 | L13: =SUM(KategoriaWydatków_09[oct]) -> 800 | M13: =SUM(KategoriaWydatków_09[nov]) -> 800 | N13: =SUM(KategoriaWydatków_09[dec]) -> 800 | O13: =SUM(KategoriaWydatków_09[year]) -> 8,700 | P13: =SUM(KategoriaWydatków_09[avg]) -> 725
B14: =LOWER(Budżet!B78) -> cele charytatywne | C14: =SUM(KategoriaWydatków_08[jan]) -> 0 | D14: =SUM(KategoriaWydatków_08[feb]) -> 100 | E14: =SUM(KategoriaWydatków_08[mar]) -> 100 | F14: =SUM(KategoriaWydatków_08[apr]) -> 100 | G14: =SUM(KategoriaWydatków_08[may]) -> 100 | H14: =SUM(KategoriaWydatków_08[jun]) -> 100 | I14: =SUM(KategoriaWydatków_08[jul]) -> 100 | J14: =SUM(KategoriaWydatków_08[aug]) -> 100 | K14: =SUM(KategoriaWydatków_08[sep]) -> 100 | L14: =SUM(KategoriaWydatków_08[oct]) -> 100 | M14: =SUM(KategoriaWydatków_08[nov]) -> 100 | N14: =SUM(KategoriaWydatków_08[dec]) -> 100 | O14: =SUM(KategoriaWydatków_08[year]) -> 1,100 | P14: =SUM(KategoriaWydatków_08[avg]) -> 92
B15: =LOWER(Budżet!B71) -> edukacja | C15: =SUM(KategoriaWydatków_07[jan]) -> 0 | D15: =SUM(KategoriaWydatków_07[feb]) -> 0 | E15: =SUM(KategoriaWydatków_07[mar]) -> 625 | F15: =SUM(KategoriaWydatków_07[apr]) -> 0 | G15: =SUM(KategoriaWydatków_07[may]) -> 0 | H15: =SUM(KategoriaWydatków_07[jun]) -> 0 | I15: =SUM(KategoriaWydatków_07[jul]) -> 0 | J15: =SUM(KategoriaWydatków_07[aug]) -> 0 | K15: =SUM(KategoriaWydatków_07[sep]) -> 625 | L15: =SUM(KategoriaWydatków_07[oct]) -> 0 | M15: =SUM(KategoriaWydatków_07[nov]) -> 0 | N15: =SUM(KategoriaWydatków_07[dec]) -> 0 | O15: =SUM(KategoriaWydatków_07[year]) -> 1,250 | P15: =SUM(KategoriaWydatków_07[avg]) -> 104
B16: =LOWER(Budżet!B64) -> ubezpieczenia | C16: =SUM(KategoriaWydatków_06[jan]) -> 975 | D16: =SUM(KategoriaWydatków_06[feb]) -> 975 | E16: =SUM(KategoriaWydatków_06[mar]) -> 975 | F16: =SUM(KategoriaWydatków_06[apr]) -> 975 | G16: =SUM(KategoriaWydatków_06[may]) -> 975 | H16: =SUM(KategoriaWydatków_06[jun]) -> 975 | I16: =SUM(KategoriaWydatków_06[jul]) -> 975 | J16: =SUM(KategoriaWydatków_06[aug]) -> 975 | K16: =SUM(KategoriaWydatków_06[sep]) -> 975 | L16: =SUM(KategoriaWydatków_06[oct]) -> 975 | M16: =SUM(KategoriaWydatków_06[nov]) -> 975 | N16: =SUM(KategoriaWydatków_06[dec]) -> 975 | O16: =SUM(KategoriaWydatków_06[year]) -> 11,700 | P16: =SUM(KategoriaWydatków_06[avg]) -> 975
B17: =LOWER(Budżet!B57) -> zdrowie | C17: =SUM(KategoriaWydatków_05[jan]) -> 25 | D17: =SUM(KategoriaWydatków_05[feb]) -> 60 | E17: =SUM(KategoriaWydatków_05[mar]) -> 175 | F17: =SUM(KategoriaWydatków_05[apr]) -> 25 | G17: =SUM(KategoriaWydatków_05[may]) -> 60 | H17: =SUM(KategoriaWydatków_05[jun]) -> 60 | I17: =SUM(KategoriaWydatków_05[jul]) -> 60 | J17: =SUM(KategoriaWydatków_05[aug]) -> 25 | K17: =SUM(KategoriaWydatków_05[sep]) -> 175 | L17: =SUM(KategoriaWydatków_05[oct]) -> 60 | M17: =SUM(KategoriaWydatków_05[nov]) -> 25 | N17: =SUM(KategoriaWydatków_05[dec]) -> 25 | O17: =SUM(KategoriaWydatków_05[year]) -> 775 | P17: =SUM(KategoriaWydatków_05[avg]) -> 65
B18: =LOWER(Budżet!B48) -> transport | C18: =SUM(KategoriaWydatków_04[jan]) -> 1,110 | D18: =SUM(KategoriaWydatków_04[feb]) -> 1,025 | E18: =SUM(KategoriaWydatków_04[mar]) -> 925 | F18: =SUM(KategoriaWydatków_04[apr]) -> 1,025 | G18: =SUM(KategoriaWydatków_04[may]) -> 1,325 | H18: =SUM(KategoriaWydatków_04[jun]) -> 1,200 | I18: =SUM(KategoriaWydatków_04[jul]) -> 1,100 | J18: =SUM(KategoriaWydatków_04[aug]) -> 1,200 | K18: =SUM(KategoriaWydatków_04[sep]) -> 1,150 | L18: =SUM(KategoriaWydatków_04[oct]) -> 1,025 | M18: =SUM(KategoriaWydatków_04[nov]) -> 925 | N18: =SUM(KategoriaWydatków_04[dec]) -> 925 | O18: =SUM(KategoriaWydatków_04[year]) -> 12,935 | P18: =SUM(KategoriaWydatków_04[avg]) -> 1,078
B19: =LOWER(Budżet!B39) -> dzieci | C19: =SUM(KategoriaWydatków_03[jan]) -> 2,373 | D19: =SUM(KategoriaWydatków_03[feb]) -> 500 | E19: =SUM(KategoriaWydatków_03[mar]) -> 350 | F19: =SUM(KategoriaWydatków_03[apr]) -> 250 | G19: =SUM(KategoriaWydatków_03[may]) -> 350 | H19: =SUM(KategoriaWydatków_03[jun]) -> 450 | I19: =SUM(KategoriaWydatków_03[jul]) -> 200 | J19: =SUM(KategoriaWydatków_03[aug]) -> 545 | K19: =SUM(KategoriaWydatków_03[sep]) -> 350 | L19: =SUM(KategoriaWydatków_03[oct]) -> 350 | M19: =SUM(KategoriaWydatków_03[nov]) -> 250 | N19: =SUM(KategoriaWydatków_03[dec]) -> 350 | O19: =SUM(KategoriaWydatków_03[year]) -> 6,318 | P19: =SUM(KategoriaWydatków_03[avg]) -> 527
B20: =LOWER(Budżet!B30) -> codzienne wydatki | C20: =SUM(KategoriaWydatków_02[jan]) -> 795 | D20: =SUM(KategoriaWydatków_02[feb]) -> 375 | E20: =SUM(KategoriaWydatków_02[mar]) -> 550 | F20: =SUM(KategoriaWydatków_02[apr]) -> 825 | G20: =SUM(KategoriaWydatków_02[may]) -> 500 | H20: =SUM(KategoriaWydatków_02[jun]) -> 450 | I20: =SUM(KategoriaWydatków_02[jul]) -> 875 | J20: =SUM(KategoriaWydatków_02[aug]) -> 475 | K20: =SUM(KategoriaWydatków_02[sep]) -> 400 | L20: =SUM(KategoriaWydatków_02[oct]) -> 825 | M20: =SUM(KategoriaWydatków_02[nov]) -> 575 | N20: =SUM(KategoriaWydatków_02[dec]) -> 375 | O20: =SUM(KategoriaWydatków_02[year]) -> 7,020 | P20: =SUM(KategoriaWydatków_02[avg]) -> 585
B21: =LOWER(Budżet!B21) -> dom | C21: =SUM(KategoriaWydatków_01[jan]) -> 1,208 | D21: =SUM(KategoriaWydatków_01[feb]) -> 1,208 | E21: =SUM(KategoriaWydatków_01[mar]) -> 1,233 | F21: =SUM(KategoriaWydatków_01[apr]) -> 1,208 | G21: =SUM(KategoriaWydatków_01[may]) -> 1,158 | H21: =SUM(KategoriaWydatków_01[jun]) -> 1,183 | I21: =SUM(KategoriaWydatków_01[jul]) -> 1,283 | J21: =SUM(KategoriaWydatków_01[aug]) -> 1,333 | K21: =SUM(KategoriaWydatków_01[sep]) -> 1,208 | L21: =SUM(KategoriaWydatków_01[oct]) -> 1,158 | M21: =SUM(KategoriaWydatków_01[nov]) -> 1,208 | N21: =SUM(KategoriaWydatków_01[dec]) -> 1,208 | O21: =SUM(KategoriaWydatków_01[year]) -> 14,596 | P21: =SUM(KategoriaWydatków_01[avg]) -> 1,216
B26: Skumulowany przepływ gotówkowy | C26: =SUM(Budżet!$C$8:C$8) -> -3,714 | D26: =SUM(Budżet!$C$8:D$8) -> 76 | E26: =SUM(Budżet!$C$8:E$8) -> -1,857 | F26: =SUM(Budżet!$C$8:F$8) -> -3,670 | G26: =SUM(Budżet!$C$8:G$8) -> -138 | H26: =SUM(Budżet!$C$8:H$8) -> -3,731 | I26: =SUM(Budżet!$C$8:I$8) -> -7,974 | J26: =SUM(Budżet!$C$8:J$8) -> -6,827 | K26: =SUM(Budżet!$C$8:K$8) -> -8,810 | L26: =SUM(Budżet!$C$8:L$8) -> -10,753 | M26: =SUM(Budżet!$C$8:M$8) -> -6,811 | N26: =SUM(Budżet!$C$8:N$8) -> -7,769 | O26: =SUM(Budżet!$C$8:O$8) -> -15,538
B28: Dodatni przepływ gotówkowy w ujęciu rocznym | C28: =IF(Budżet!C$8<0,NA(),IF(okres+2<>COLUMN(Budżet!C$8),NA(),Budżet!C$8)) ->  | D28: =IF(Budżet!D$8<0,NA(),IF(okres+2<>COLUMN(Budżet!D$8),NA(),Budżet!D$8)) ->  | E28: =IF(Budżet!E$8<0,NA(),IF(okres+2<>COLUMN(Budżet!E$8),NA(),Budżet!E$8)) ->  | F28: =IF(Budżet!F$8<0,NA(),IF(okres+2<>COLUMN(Budżet!F$8),NA(),Budżet!F$8)) ->  | G28: =IF(Budżet!G$8<0,NA(),IF(okres+2<>COLUMN(Budżet!G$8),NA(),Budżet!G$8)) ->  | H28: =IF(Budżet!H$8<0,NA(),IF(okres+2<>COLUMN(Budżet!H$8),NA(),Budżet!H$8)) ->  | I28: =IF(Budżet!I$8<0,NA(),IF(okres+2<>COLUMN(Budżet!I$8),NA(),Budżet!I$8)) ->  | J28: =IF(Budżet!J$8<0,NA(),IF(okres+2<>COLUMN(Budżet!J$8),NA(),Budżet!J$8)) ->  | K28: =IF(Budżet!K$8<0,NA(),IF(okres+2<>COLUMN(Budżet!K$8),NA(),Budżet!K$8)) ->  | L28: =IF(Budżet!L$8<0,NA(),IF(okres+2<>COLUMN(Budżet!L$8),NA(),Budżet!L$8)) ->  | M28: =IF(Budżet!M$8<0,NA(),IF(okres+2<>COLUMN(Budżet!M$8),NA(),Budżet!M$8)) ->  | N28: =IF(Budżet!N$8<0,NA(),IF(okres+2<>COLUMN(Budżet!N$8),NA(),Budżet!N$8)) ->  | O28: =IF(Budżet!O$8<0,NA(),IF(okres+2<>COLUMN(Budżet!O$8),NA(),Budżet!O$8)) -> 
B29: Ujemny przepływ gotówkowy w ujęciu rocznym | C29: =IF(Budżet!C$8>=0,NA(),IF(okres+2<>COLUMN(Budżet!C$8),NA(),Budżet!C$8)) ->  | D29: =IF(Budżet!D$8>=0,NA(),IF(okres+2<>COLUMN(Budżet!D$8),NA(),Budżet!D$8)) ->  | E29: =IF(Budżet!E$8>=0,NA(),IF(okres+2<>COLUMN(Budżet!E$8),NA(),Budżet!E$8)) -> -1,933 | F29: =IF(Budżet!F$8>=0,NA(),IF(okres+2<>COLUMN(Budżet!F$8),NA(),Budżet!F$8)) ->  | G29: =IF(Budżet!G$8>=0,NA(),IF(okres+2<>COLUMN(Budżet!G$8),NA(),Budżet!G$8)) ->  | H29: =IF(Budżet!H$8>=0,NA(),IF(okres+2<>COLUMN(Budżet!H$8),NA(),Budżet!H$8)) ->  | I29: =IF(Budżet!I$8>=0,NA(),IF(okres+2<>COLUMN(Budżet!I$8),NA(),Budżet!I$8)) ->  | J29: =IF(Budżet!J$8>=0,NA(),IF(okres+2<>COLUMN(Budżet!J$8),NA(),Budżet!J$8)) ->  | K29: =IF(Budżet!K$8>=0,NA(),IF(okres+2<>COLUMN(Budżet!K$8),NA(),Budżet!K$8)) ->  | L29: =IF(Budżet!L$8>=0,NA(),IF(okres+2<>COLUMN(Budżet!L$8),NA(),Budżet!L$8)) ->  | M29: =IF(Budżet!M$8>=0,NA(),IF(okres+2<>COLUMN(Budżet!M$8),NA(),Budżet!M$8)) ->  | N29: =IF(Budżet!N$8>=0,NA(),IF(okres+2<>COLUMN(Budżet!N$8),NA(),Budżet!N$8)) ->  | O29: =IF(Budżet!O$8>=0,NA(),IF(okres+2<>COLUMN(Budżet!O$8),NA(),Budżet!O$8)) -> 
B37: =LOWER(wyświetl_długi_okres) -> marzec
B38: =wyświetl_długi_okres & " Przychód" -> marzec Przychód | C38: =INDEX(Budżet!$C$6:$P$6,,okres) -> 4,000 zł
B39: =wyświetl_długi_okres & " Wydatki: " & TEXT(INDEX(Budżet!$C$7:$P$7,,okres),"# ##0 zł") -> marzec Wydatki: 5 933 zł | C39: =INDEX(Budżet!$C$7:$P$7,,okres) -> 5,933 zł
B40: =wyświetl_długi_okres & " przepływ gotówkowy" -> marzec przepływ gotówkowy | C40: =ABS(INDEX(Budżet!$C$8:$P$8,,okres)) -> 1,933 zł | D40: =REPT("-",INDEX(Budżet!$C$8:$P$8,,okres)<0) -> -
